Workbook

Sheet MSU
B1: Jukka Lehtola | E1: 28.7.1971 Vimpeli
B2: SUPERPESIS | E2: Runkosarja | I2: Kärkilyönnit (KL), pesänvälit | P2: Runkosarja TOP-30 | U2: Ylempi loppusarja | AB2: Ylempi loppusarja TOP-10 | AG2: Play off, voitot, voittoprosentti | AL2: Arvo-ottelut | AO2: Mitalit
B3: Vuosi | C3: Sija | D3: Seura | E3: OTT | F3: KUN | G3: LÖI | H3: TOI | I3: KL | J3: 0 > 1 | K3: 1 > 2 | L3: 2 > 3 | M3: 3 > k | N3: KL-% | P3: LÖI | Q3: TOI | R3: L+T | S3: KL | U3: OTT | V3: KUN | W3: LÖI | X3: TOI | Y3: KL | Z3: KL-% | AB3: LÖI | AC3: TOI | AD3: L+T | AE3: KL | AG3: Puolivälierät | AH3: Välierät | AI3: Pronssi | AJ3: Finaalit | AL3: IL | AM3: LL | AN3: hSM | AO3: K | AP3: H | AQ3: P
B4: 1987 | C4: 11. | D4: ViVe 2 | F4: suomensarja | AA4: 0
B5: 1988 | C5: 4. | D5: ViVe 2 | F5: maakuntasarja
B6: 1989 | C6: 1. | D6: ViVe | F6: ykkössarja
B7: 1990 | C7: 6. | D7: ViVe | E7: 26 | F7: 0 | G7: 5 | H7: 8 | I7: 70 | J7: 41 | K7: 17 | L7: 7 | M7: 5 | N7: 36.3 % | U7: 3 | V7: 0 | W7: 0 | X7: 1 | Y7: 8 | Z7: 30.8 % | AA7: 0 | AG7: 1-2 KaMa
B8: 1991 | C8: 6. | D8: ViVe | E8: 22 | F8: 0 | G8: 1 | H8: 13 | I8: 40 | J8: 22 | K8: 9 | L8: 8 | M8: 1 | N8: 32.0 % | U8: 3 | V8: 1 | W8: 2 | X8: 3 | Y8: 10 | Z8: 47.6 % | AG8: 1-2 Tahko
B9: 1992 | C9: 8. | D9: ViVe | E9: 25 | F9: 2 | G9: 5 | H9: 16 | I9: 72 | J9: 41 | K9: 15 | L9: 9 | M9: 7 | N9: 39.3 % | U9: 2 | V9: 0 | W9: 0 | X9: 0 | Y9: 5 | Z9: 45.5 % | AA9: 0 | AG9: 0-2 SoJy
B10: 1993 | C10: 12. | D10: ViVe | E10: 25 | F10: 1 | G10: 2 | H10: 18 | I10: 82 | J10: 33 | K10: 25 | L10: 21 | M10: 3 | N10: 45.6 % | AA10: 0
B11: 1994 | C11: 11. | D11: ViVe | E11: 11 | F11: 0 | G11: 3 | H11: 5 | I11: 22 | J11: 11 | K11: 3 | L11: 5 | M11: 3 | N11: 40.7 % | AA11: 66
B12: 1995
B13: 1996
B14: 1997 | C14: 15. | D14: ViVe | E14: 27 | F14: 2 | G14: 2 | H14: 13 | I14: 89 | J14: 49 | K14: 26 | L14: 10 | M14: 4 | N14: 46.4 %
B15: 1998 | C15: 5. | D15: ViVe | F15: ykköspesis
B16: 1999
B17: 2000 | C17: 5. | D17: ViVe | F17: ykköspesis
B18: Yhteensä | E18: 136 | F18: 5 | G18: 18 | H18: 73 | I18: 375 | J18: 197 | K18: 95 | L18: 60 | M18: 23 | N18: 40.5 % | P18: 0-0-0 | Q18: 0-0-0 | R18: 0-0-0 | S18: 0-0-0 | U18: =PRODUCT(E24) -> 8 | V18: 1 | W18: 2 | X18: 4 | Y18: 23 | Z18: 39.7 % | AA18: =SUM(AA3:AA17) -> 66 | AB18: 0-0-0 | AC18: 0-0-0 | AD18: 0-0-0 | AE18: 0-0-0 | AG18: 0/3 | AH18: 0/0 | AI18: 0/0 | AJ18: 0/0 | AL18: =SUM(AL4:AL17) -> 0 | AM18: 0 | AN18: 0 | AO18: 0 | AP18: 0 | AQ18: 0
AG19: 0.0 % | AH19: 0.0 % | AI19: 0.0 % | AJ19: 0.0 %
B20: Pesispörssi | D20: 258.7
B22: URA SUPERISSA | E22: OTT | F22: KUN | G22: LÖI | H22: TOI | I22: KL | K22: ka/L | L22: ka/T | M22: ka/KL | N22: KL-% | P22: ENSIMMÄISET RUNKOSARJASSA | AG22: ENSIMMÄISET PUDOTUSPELEISSÄ | AL22: YLEISÖ
B23: Runkosarja | E23: 136 | F23: 5 | G23: 18 | H23: 73 | I23: 375 | K23: 0.17 | L23: 0.54 | M23: 2.76 | N23: 40.5 % | P23: Ottelu | R23: 06.05. 1990 ViVe - KPL 11-4 | Y23: 1. ottelu | AB23: 18 v 9 kk 8 pv | AG23: Ottelu | AH23: 1. 15.08. 1990 AA - Tahko 5-7 | AL23: 2614 | AN23: 21 v 0 kk 18 pv
B24: Ylempi loppusarja | E24: 8 | F24: 1 | G24: 2 | H24: 4 | I24: 23 | K24: 0.38 | L24: 0.50 | M24: 2.88 | N24: 39.7 % | P24: Lyöty | R24: 13.05. 1990 AA - ViVe 11-6 | Y24: 2. ottelu | AB24: 18 v 9 kk 15 pv | AG24: Lyöty | AH24: 2. 15.08. 1991 AA - SoJy 4-7 | AL24: 3641 | AN24: 22 v 0 kk 18 pv
B25: Alempi loppusarja | P25: Tuotu | R25: 06.05. 1990 ViVe - KPL 11-4 | Y25: 1. ottelu | AB25: 18 v 9 kk 8 pv | AG25: Tuotu | AH25: 3. 19.08. 1990 KaMa - ViVe 12-4 | AL25: 2745 | AN25: 21 v 0 kk 22 pv
B26: KAIKKI | E26: 144 | F26: 6 | G26: 20 | H26: 77 | I26: 398 | K26: 0.18 | L26: 0.53 | M26: 2.76 | N26: 40.4 % | P26: Kunnari | R26: 17.08. 1991 Tahko - ViVe 6-19 | Y26: 53. ottelu | AB26: 20 v 0 kk 20 pv | AG26: Kunnari | AH26: 5. 17.08. 1991 Tahko - ViVe 6-19 | AL26: 3042 | AN26: 22 v 0 kk 20 pv
B28: Seurat | D28: ViVe = Vimpelin Veto (1934), kasvattajaseura

Sheet MYP, MSS
B1: Jukka Lehtola | E1: 28.7.1971 Vimpeli
B2: YKKÖSPESIS | E2: Runkosarja | L2: Runkosarja TOP-10 | Q2: Jatkosarjat | X2: SUOMENSARJA | AA2: Runkosarja | AH2: Runkosarja TOP-10 | AM2: Jatkosarjat
B3: Vuosi | C3: Sija | D3: Seura | E3: OTT | F3: KUN | G3: LÖI | H3: TOI | I3: KL | J3: KL-% | L3: LÖI | M3: TOI | N3: L+T | O3: KL | Q3: OTT | R3: KUN | S3: LÖI | T3: TOI | U3: KL | V3: KL-% | X3: Vuosi | Y3: Sija | Z3: Seura | AA3: OTT | AB3: KUN | AC3: LÖI | AD3: TOI | AE3: KL | AF3: KL-% | AH3: LÖI | AI3: TOI | AJ3: L+T | AK3: KL | AM3: OTT | AN3: KUN | AO3: LÖI | AP3: TOI | AQ3: KL | AR3: KL-%
X4: 1987 | Y4: 11. | Z4: ViVe 2 | AA4: 5 | AB4: 0 | AC4: 0 | AD4: 2
B6: 1989 | C6: 1. | D6: ViVe | E6: 17 | F6: 0 | G6: 2 | H6: 5
B7: 1998 | C7: 5. | D7: ViVe | E7: 3 | F7: 0 | G7: 0 | H7: 0 | I7: 11
B9: 2000 | C9: 5. | D9: ViVe | E9: 22 | F9: 1 | G9: 6 | H9: 11 | I9: 60 | J9: 49.6 % | K9: 121
B10: YHTEENSÄ | E10: =SUM(E4:E9) -> 42 | F10: =SUM(F4:F9) -> 1 | G10: =SUM(G4:G9) -> 8 | H10: =SUM(H4:H9) -> 16 | I10: =SUM(I4:I9) -> 71 | J10: 0.0 % | K10: =SUM(K4:K9) -> 121 | Q10: =SUM(Q4:Q9) -> 0 | R10: =SUM(R4:R9) -> 0 | S10: =SUM(S4:S9) -> 0 | T10: =SUM(T4:T9) -> 0 | U10: =SUM(U4:U9) -> 0 | V10: 0.0 % | W10: =SUM(W4:W9) -> 0 | X10: YHTEENSÄ | AA10: =SUM(AA4:AA9) -> 5 | AB10: =SUM(AB4:AB9) -> 0 | AC10: =SUM(AC4:AC9) -> 0 | AD10: =SUM(AD4:AD9) -> 2 | AE10: =SUM(AE4:AE9) -> 0 | AF10: 0.0 % | AG10: =SUM(AG4:AG9) -> 0 | AM10: =SUM(AM4:AM9) -> 0 | AN10: =SUM(AN4:AN9) -> 0 | AO10: =SUM(AO4:AO9) -> 0 | AP10: =SUM(AP4:AP9) -> 0 | AQ10: =SUM(AQ4:AQ9) -> 0 | AR10: 0.0 % | AS10: =SUM(AS4:AS9) -> 0
B12: KAIKKI OTTELUT | E12: OTT | F12: KUN | G12: LÖI | H12: TOI | I12: KL | J12: KL-% | L12: ka/L | M12: ka/T | N12: ka/l+t | O12: ka/kl | R12: Seurat | T12: ViVe = Vimpelin Veto (1934), kasvattajaseura
B13: SUPERPESIS | E13: 144 | F13: 6 | G13: 20 | H13: 77 | I13: 398 | J13: 40.4 % | K13: =PRODUCT(I13/J13) -> 985.1485149 | L13: =PRODUCT((F13+G13)/E13) -> 0.18 | M13: =PRODUCT(H13/E13) -> 0.53 | N13: =PRODUCT((F13+G13+H13)/E13) -> 0.72 | O13: =PRODUCT(I13/E13) -> 2.76
B14: YKKÖSPESIS | E14: =PRODUCT(E10+Q10) -> 42 | F14: =PRODUCT(F10+R10) -> 1 | G14: =PRODUCT(G10+S10) -> 8 | H14: =PRODUCT(H10+T10) -> 16 | I14: =PRODUCT(I10+U10) -> 71 | K14: =PRODUCT(K10+W10) -> 121 | L14: =PRODUCT((F14+G14)/E14) -> 0.21 | M14: =PRODUCT(H14/E14) -> 0.38 | N14: =PRODUCT((F14+G14+H14)/E14) -> 0.60 | O14: =PRODUCT(I14/25) -> 2.84
B15: SUOMENSARJA | E15: =PRODUCT(AA10+AM10) -> 5 | F15: =PRODUCT(AB10+AN10) -> 0 | G15: =PRODUCT(AC10+AO10) -> 0 | H15: =PRODUCT(AD10+AP10) -> 2 | I15: =PRODUCT(AE10+AQ10) -> 0 | J15: 0.0 % | K15: =PRODUCT(AG10+AS10) -> 0 | L15: 0.00 | M15: 0.00 | N15: 0.00 | O15: 0.00
B16: YHTEENSÄ | E16: =SUM(E13:E15) -> 191 | F16: =SUM(F13:F15) -> 7 | G16: 28 | H16: 95 | I16: 469 | K16: =SUM(K13:K15) -> 1106.148515 | L16: =PRODUCT((F16+G16)/E16) -> 0.18 | M16: =PRODUCT(H16/E16) -> 0.50 | N16: =PRODUCT((F16+G16+H16)/E16) -> 0.68 | O16: =PRODUCT(I16/169) -> 2.78

Sheet Arvo-ottelut
B1: ITÄ - LÄNSI - KORTTI
B2: Jukka Lehtola | C2: 28.7.1971 Vimpeli
B3: A-POJAT | C3: Itä - Länsi, tulos | D3: Joukkue | E3: Seura | G3: V | H3: T | I3: H | J3: Up. | K3: Lj. | L3: Palk. | M3: O | N3: K | O3: L | P3: T | Q3: KL | R3: 1 | S3: 2 | T3: 3 | U3: k | V3: KL-% | W3: Pelinjohtaja | X3: Yleisöä
B4: 08.06. 1990 Helsinki | C4: 22-2 | D4: Länsi | E4: ViVe | I4: 1 | K4: 6 | M4: 1 | Q4: 2/8 | R4: 1/3 | S4: 1/3 | U4: 0/2 | V4: 25.0 % | W4: Reijo Kiventöyry | X4: 511

Sheet Kärkilyönnit
B1: KÄRKILYÖNNIT RUNKOSARJASSA | V1: VUOSITTAISET SIJOITUKSET TOP - 30
G2: 0 > 1 | J2: 1 > 2 | M2: 2 > 3 | P2: 3 > k | S2: Yhteensä
B3: Vuosi | C3: Sija | D3: Seura | E3: OTT | F3: KL | G3: YHT | H3: % | I3: KL | J3: YHT | K3: % | L3: KL | M3: YHT | N3: % | O3: KL | P3: YHT | Q3: % | R3: KL | S3: YHT | T3: % | V3: Vuosi | W3: Sija | X3: Seura | Y3: 0 > 1 | Z3: 1 > 2 | AA3: 2 > 3 | AB3: 3 > k | AC3: KL
B4: 1990 | C4: 5. | D4: ViVe | E4: 26 | F4: 41 | G4: 101 | H4: =PRODUCT(F4/G4) -> 40.6 % | I4: 17 | J4: 48 | K4: =PRODUCT(I4/J4) -> 35.4 % | L4: 7 | M4: 27 | N4: =PRODUCT(L4/M4) -> 25.9 % | O4: 5 | P4: 15 | Q4: =PRODUCT(O4/P4) -> 33.3 % | R4: 70 | S4: =PRODUCT(G4+J4+M4+P4) -> 191 | T4: =PRODUCT(R4/S4) -> 36.6 % | V4: 1990 | W4: 5. | X4: ViVe | Y4: 29.
B5: 1991 | C5: 6. | D5: ViVe | E5: 22 | F5: 22 | G5: 58 | H5: 37.9 % | I5: 9 | J5: 33 | K5: 27.3 % | L5: 8 | M5: 21 | N5: 38.1 % | O5: 1 | P5: 13 | Q5: 7.7 % | R5: =PRODUCT(F5+I5+L5+O5) -> 40 | S5: 125 | T5: =PRODUCT(R5/S5) -> 32.0 % | V5: 1991 | W5: 6. | X5: ViVe
B6: 1992 | C6: 8. | D6: ViVe | E6: 25 | F6: 41 | G6: 95 | H6: 43.2 % | I6: 15 | J6: 47 | K6: 31.9 % | L6: 9 | M6: 24 | N6: 37.5 % | O6: 7 | P6: 17 | Q6: 41.2 % | R6: 72 | S6: 183 | T6: 39.3 % | V6: 1992 | W6: 8. | X6: ViVe | Y6: 30.
B7: 1993 | C7: 12. | D7: ViVe | E7: 25 | F7: 33 | G7: 81 | H7: 40.7 % | I7: 25 | J7: 48 | K7: 52.1 % | L7: 21 | M7: 33 | N7: 63.6 % | O7: 3 | P7: 17 | Q7: 17.6 % | R7: 82 | S7: 179 | T7: 45.6 % | V7: 1993 | W7: 12. | X7: ViVe
B8: 1994 | C8: 14. | D8: ViVe | E8: 11 | F8: 11 | G8: 25 | H8: 44.0 % | I8: 3 | J8: 8 | K8: 37.5 % | L8: 5 | M8: 11 | N8: 45.5 % | O8: 3 | P8: 10 | Q8: 30.0 % | R8: 22 | S8: 54 | T8: 40.7 % | V8: 1994 | W8: 14. | X8: ViVe
B9: **** | V9: ****
B10: 1997 | C10: 15. | D10: ViVe | E10: 27 | F10: 49 | G10: 109 | H10: 45.0 % | I10: 26 | J10: 57 | K10: 45.6 % | L10: 10 | M10: 17 | N10: 58.8 % | O10: 4 | P10: 9 | Q10: 44.4 % | R10: 89 | S10: 192 | T10: 46.4 % | V10: 1997 | W10: 15. | X10: ViVe | Y10: 25.
B11: Yhteensä | E11: =SUM(E4:E10) -> 136 | F11: =SUM(F4:F10) -> 197 | G11: =SUM(G4:G10) -> 469 | H11: =PRODUCT(F11/G11) -> 42.0 % | I11: =SUM(I4:I10) -> 95 | J11: =SUM(J4:J10) -> 241 | K11: =PRODUCT(I11/J11) -> 39.4 % | L11: =SUM(L4:L10) -> 60 | M11: =SUM(M4:M10) -> 133 | N11: =PRODUCT(L11/M11) -> 45.1 % | O11: =SUM(O4:O10) -> 23 | P11: =SUM(P4:P10) -> 81 | Q11: =PRODUCT(O11/P11) -> 28.4 % | R11: =SUM(R4:R10) -> 375 | S11: =SUM(S4:S10) -> 924 | T11: =PRODUCT(R11/S11) -> 40.6 %
B13: KÄRKILYÖNNIT YLEMMISSÄ PUDOTUSPELEISSÄ | V13: VUOSITTAISET SIJOITUKSET TOP - 30
G14: 0 > 1 | J14: 1 > 2 | M14: 2 > 3 | P14: 3 > k | S14: Yhteensä
B15: Vuosi | C15: Sija | D15: Seura | E15: OTT | F15: KL | G15: YHT | H15: % | I15: KL | J15: YHT | K15: % | L15: KL | M15: YHT | N15: % | O15: KL | P15: YHT | Q15: % | R15: KL | S15: YHT | T15: % | V15: Vuosi | W15: Sija | X15: Seura | Y15: 0 > 1 | Z15: 1 > 2 | AA15: 2 > 3 | AB15: 3 > k | AC15: KL
B16: 1990 | C16: 6. | D16: ViVe | E16: 3 | F16: 3 | G16: 17 | H16: 17.6 % | I16: 4 | J16: 6 | K16: 66.7 % | L16: 1 | M16: 1 | N16: 100.0 % | O16: 0 | P16: 2 | Q16: 0.0 % | R16: 8 | S16: 26 | T16: 30.8 % | V16: 1990 | W16: 6. | X16: ViVe
B17: 1991 | C17: 6. | D17: ViVe | E17: 3 | F17: 2 | G17: 6 | H17: 33.3 % | I17: 2 | J17: 5 | K17: 40.0 % | L17: 3 | M17: 6 | N17: 50.0 % | O17: 3 | P17: 4 | Q17: 75.0 % | R17: 10 | S17: 21 | T17: 47.6 % | V17: 1991 | W17: 6. | X17: ViVe | AB17: 30.
B18: 1992 | C18: 8. | D18: ViVe | E18: 2 | F18: 2 | G18: 5 | H18: 40.0 % | I18: 3 | J18: 6 | K18: 50.0 % | L18: 0 | M18: 0 | N18: 0.0 % | O18: 0 | P18: 0 | Q18: 0.0 % | R18: 5 | S18: 11 | T18: 45.5 % | V18: 1992 | W18: 8. | X18: ViVe
B19: Yhteensä | E19: =SUM(E14:E18) -> 8 | F19: =SUM(F16:F18) -> 7 | G19: =SUM(G16:G18) -> 28 | H19: =PRODUCT(F19/G19) -> 25.0 % | I19: =SUM(I16:I18) -> 9 | J19: =SUM(J16:J18) -> 17 | K19: =PRODUCT(I19/J19) -> 52.9 % | L19: =SUM(L16:L18) -> 4 | M19: =SUM(M16:M18) -> 7 | N19: =PRODUCT(L19/M19) -> 57.1 % | O19: =SUM(O16:O18) -> 3 | P19: =SUM(P16:P18) -> 6 | Q19: =PRODUCT(O19/P19) -> 50.0 % | R19: =SUM(R16:R18) -> 23 | S19: =SUM(S16:S18) -> 58 | T19: =PRODUCT(R19/S19) -> 39.7 %
B21: KÄRKILYÖNNIT
G22: 0 > 1 | J22: 1 > 2 | M22: 2 > 3 | P22: 3 > k | S22: Yhteensä
E23: OTT | F23: KL | G23: YHT | H23: % | I23: KL | J23: YHT | K23: % | L23: KL | M23: YHT | N23: % | O23: KL | P23: YHT | Q23: % | R23: KL | S23: YHT | T23: %
B24: RUNKOSARJA | E24: =PRODUCT(E11) -> 136 | F24: =PRODUCT(F11) -> 197 | G24: =PRODUCT(G11) -> 469 | H24: =PRODUCT(H11) -> 42.0 % | I24: =PRODUCT(I11) -> 95 | J24: =PRODUCT(J11) -> 241 | K24: =PRODUCT(K11) -> 39.4 % | L24: =PRODUCT(L11) -> 60 | M24: =PRODUCT(M11) -> 133 | N24: =PRODUCT(N11) -> 45.1 % | O24: =PRODUCT(O11) -> 23 | P24: =PRODUCT(P11) -> 81 | Q24: =PRODUCT(Q11) -> 28.4 % | R24: =PRODUCT(R11) -> 375 | S24: =PRODUCT(S11) -> 924 | T24: =PRODUCT(T11) -> 40.6 %
B25: PLAY OFF | E25: =PRODUCT(E19) -> 8 | F25: =PRODUCT(F19) -> 7 | G25: 28 | H25: 25.0 % | I25: 9 | J25: 17 | K25: 52.9 % | L25: 4 | M25: 7 | N25: 57.1 % | O25: 3 | P25: 6 | Q25: 50.0 % | R25: 23 | S25: 58 | T25: 39.7 %
